[Event "*** Titled Tuesday Blitz"]
[Site "Chess.com"]
[Date "2021.04.06"]
[Round "6"]
[White "bazar-wokzal"]
[Black "Diaschess88"]
[Result "1-0"]
[WhiteElo "2577"]
[BlackElo "2398"]
[TimeControl "180+1"]
[EndTime "11:09:29 PDT"]
[Termination "bazar-wokzal won by resignation"]

1. e4 {[%clk 0:03:00.9]} 1... c6 {[%clk 0:02:59.9]} 2. d4 {[%clk 0:02:58.1]}
2... d5 {[%clk 0:03:00.8]} 3. e5 {[%clk 0:02:58.4]} 3... c5 {[%clk 0:03:00.4]}
4. dxc5 {[%clk 0:02:58]} 4... Nc6 {[%clk 0:02:59.6]} 5. Bb5 {[%clk 0:02:56.6]}
5... e6 {[%clk 0:02:59]} 6. Be3 {[%clk 0:02:55.9]} 6... Bd7 {[%clk 0:02:59.5]}
7. Bxc6 {[%clk 0:02:55.4]} 7... Bxc6 {[%clk 0:03:00]} 8. Nf3 {[%clk 0:02:55.8]}
8... Ne7 {[%clk 0:02:24.8]} 9. O-O {[%clk 0:02:54.7]} 9... Nf5 {[%clk
0:02:22.2]} 10. Bd4 {[%clk 0:02:55.1]} 10... h5 {[%clk 0:02:17]} 11. c3 {[%clk
0:02:54]} 11... g5 {[%clk 0:02:16.7]} 12. b4 {[%clk 0:02:50.5]} 12... Be7 {[%clk
0:01:52.3]} 13. Na3 {[%clk 0:02:35.6]} 13... a6 {[%clk 0:01:50.2]} 14. Nc2
{[%clk 0:02:31.8]} 14... g4 {[%clk 0:01:49.4]} 15. Nfe1 {[%clk 0:02:23.4]} 15...
Bb5 {[%clk 0:01:31.6]} 16. Nd3 {[%clk 0:02:23.4]} 16... h4 {[%clk 0:01:31.7]}
17. a4 {[%clk 0:02:17]} 17... Bc4 {[%clk 0:01:29.7]} 18. Ne3 {[%clk 0:02:16.1]}
18... Nxe3 {[%clk 0:01:28.7]} 19. fxe3 {[%clk 0:02:15]} 19... Rg8 {[%clk
0:01:12]} 20. Rf4 {[%clk 0:02:12.2]} 20... Bg5 {[%clk 0:01:08.5]} 21. Rf2 {[%clk
0:01:42.5]} 21... g3 {[%clk 0:01:07.8]} 22. Rf3 {[%clk 0:01:40.6]} 22... gxh2+
{[%clk 0:01:05.8]} 23. Kxh2 {[%clk 0:01:39.3]} 23... Bh6 {[%clk 0:01:02.7]} 24.
Nf4 {[%clk 0:01:29.1]} 24... Qg5 {[%clk 0:01:00.6]} 25. Qd2 {[%clk 0:01:28.7]}
25... Qg4 {[%clk 0:00:47.2]} 26. Qf2 {[%clk 0:01:20.3]} 26... Rg7 {[%clk
0:00:35.9]} 27. Rh3 {[%clk 0:01:15.9]} 27... Bxf4+ {[%clk 0:00:33.1]} 28. exf4
{[%clk 0:01:15.7]} 28... Rh7 {[%clk 0:00:29.3]} 29. Re1 {[%clk 0:01:13.4]} 29...
Bd3 {[%clk 0:00:29.4]} 30. Rxd3 {[%clk 0:01:05.1]} 30... Kd7 {[%clk 0:00:28.5]}
31. b5 {[%clk 0:01:03.9]} 31... Rg8 {[%clk 0:00:23.9]} 32. Rh3 {[%clk
0:00:56.5]} 32... Rh5 {[%clk 0:00:17.6]} 33. Kh1 {[%clk 0:00:54.1]} 33... Rgh8
{[%clk 0:00:15.3]} 34. Qf3 {[%clk 0:00:51]} 34... Qg6 {[%clk 0:00:13]} 35. c6+
{[%clk 0:00:47.4]} 35... bxc6 {[%clk 0:00:12.9]} 36. bxc6+ {[%clk 0:00:48.3]}
36... Kxc6 {[%clk 0:00:12.5]} 37. Qe2 {[%clk 0:00:47.5]} 37... Ra8 {[%clk
0:00:10.4]} 38. c4 {[%clk 0:00:46.4]} 38... Rf5 {[%clk 0:00:10]} 39. cxd5+
{[%clk 0:00:46]} 39... exd5 {[%clk 0:00:10.9]} 40. Rc3+ {[%clk 0:00:41.7]} 40...
Kd7 {[%clk 0:00:11]} 41. e6+ {[%clk 0:00:41]} 41... Qxe6 {[%clk 0:00:09]} 42.
Be5 {[%clk 0:00:39.6]} 42... f6 {[%clk 0:00:07.7]} 43. Bd4 {[%clk 0:00:29.1]}
43... Qxe2 {[%clk 0:00:06.8]} 44. Rxe2 {[%clk 0:00:29.5]} 44... Rxf4 {[%clk
0:00:07.3]} 45. Rd3 {[%clk 0:00:28.5]} 45... Re8 {[%clk 0:00:06.4]} 46. Rxe8
{[%clk 0:00:27.7]} 46... Kxe8 {[%clk 0:00:07.3]} 47. Kh2 {[%clk 0:00:28.1]}
47... Kd7 {[%clk 0:00:07]} 48. Kh3 {[%clk 0:00:28.3]} 48... f5 {[%clk
0:00:06.8]} 49. a5 {[%clk 0:00:28]} 49... Kc6 {[%clk 0:00:06.7]} 50. Bb6 {[%clk
0:00:28]} 50... Re4 {[%clk 0:00:06]} 51. Rf3 {[%clk 0:00:27.2]} 51... d4 {[%clk
0:00:04.9]} 52. Rxf5 {[%clk 0:00:26.8]} 52... d3 {[%clk 0:00:05.3]} 53. Rf3
{[%clk 0:00:26.4]} 53... d2 {[%clk 0:00:03.6]} 54. Rd3 {[%clk 0:00:26.5]} 54...
Re2 {[%clk 0:00:03.4]} 55. Rd4 {[%clk 0:00:25.1]} 55... Kb5 {[%clk 0:00:03.3]}
56. Kh2 {[%clk 0:00:23.9]} 56... Kc6 {[%clk 0:00:02.5]} 57. Rd3 {[%clk
0:00:22.9]} 57... Kb5 {[%clk 0:00:02.5]} 58. Bd8 {[%clk 0:00:22.9]} 58... Kc4
{[%clk 0:00:02.9]} 59. Rd6 {[%clk 0:00:21.7]} 59... Kc3 {[%clk 0:00:03.3]} 60.
Bg5 {[%clk 0:00:20]} 60... Kc2 {[%clk 0:00:03.1]} 61. Rxd2+ {[%clk 0:00:19.3]}
61... Rxd2 {[%clk 0:00:04]} 62. Bxd2 {[%clk 0:00:19.7]} 62... Kxd2 {[%clk
0:00:03.8]} 63. Kh3 {[%clk 0:00:20.5]} 63... Kc3 {[%clk 0:00:02.2]} 64. Kxh4
{[%clk 0:00:20.8]} 64... Kb4 {[%clk 0:00:03.1]} 65. g4 {[%clk 0:00:21.6]} 65...
Kxa5 {[%clk 0:00:04]} 66. g5 {[%clk 0:00:22.5]} 66... Kb4 {[%clk 0:00:04.8]} 67.
g6 {[%clk 0:00:23.4]} 67... a5 {[%clk 0:00:05.7]} 68. g7 {[%clk 0:00:24.3]}
68... a4 {[%clk 0:00:06.6]} 69. g8=Q {[%clk 0:00:24.8]} 69... a3 {[%clk
0:00:07.5]} 70. Qa2 {[%clk 0:00:24.6]} 70... Kc3 {[%clk 0:00:08.4]} 71. Qxa3+
{[%clk 0:00:24.3]} 1-0

[Event "*** Titled Tuesday Blitz"]
[Site "Chess.com"]
[Date "2021.04.06"]
[Round "6"]
[White "chessdiamant"]
[Black "annacramling"]
[Result "1-0"]
[WhiteElo "2373"]
[BlackElo "2083"]
[TimeControl "180+1"]
[EndTime "11:09:29 PDT"]
[Termination "chessdiamant won on time"]

1. e4 {[%clk 0:02:58.9]} 1... c5 {[%clk 0:02:58]} 2. Nf3 {[%clk 0:02:58.5]} 2...
Nc6 {[%clk 0:02:51.1]} 3. c3 {[%clk 0:02:58]} 3... Nf6 {[%clk 0:02:49.7]} 4. e5
{[%clk 0:02:56.2]} 4... Nd5 {[%clk 0:02:49.8]} 5. d4 {[%clk 0:02:55.7]} 5...
cxd4 {[%clk 0:02:44.4]} 6. cxd4 {[%clk 0:02:56.6]} 6... e6 {[%clk 0:02:42.4]} 7.
Nc3 {[%clk 0:02:55.6]} 7... Nxc3 {[%clk 0:02:40.4]} 8. bxc3 {[%clk 0:02:56.5]}
8... d6 {[%clk 0:02:39.4]} 9. exd6 {[%clk 0:02:55.8]} 9... Bxd6 {[%clk
0:02:38.2]} 10. Bd3 {[%clk 0:02:54.9]} 10... Ne7 {[%clk 0:02:26.6]} 11. O-O
{[%clk 0:02:52.4]} 11... Ng6 {[%clk 0:02:23.6]} 12. g3 {[%clk 0:02:48.6]} 12...
O-O {[%clk 0:02:22.3]} 13. h4 {[%clk 0:02:48.5]} 13... f5 {[%clk 0:01:56.4]} 14.
h5 {[%clk 0:02:46.1]} 14... Ne7 {[%clk 0:01:43]} 15. Qe2 {[%clk 0:02:44.2]}
15... Nd5 {[%clk 0:01:29.5]} 16. Bd2 {[%clk 0:02:43.7]} 16... Nf6 {[%clk
0:01:27.5]} 17. Ne5 {[%clk 0:02:19.4]} 17... Bxe5 {[%clk 0:01:11.7]} 18. dxe5
{[%clk 0:02:18.9]} 18... Ng4 {[%clk 0:01:06.3]} 19. f3 {[%clk 0:02:11.4]} 19...
Nxe5 {[%clk 0:01:01.8]} 20. Qxe5 {[%clk 0:02:04.7]} 20... Qxd3 {[%clk
0:01:01.2]} 21. h6 {[%clk 0:02:04.2]} 21... Rf7 {[%clk 0:00:41.5]} 22. hxg7
{[%clk 0:01:58.8]} 22... Qxd2 {[%clk 0:00:36.1]} 23. Rad1 {[%clk 0:01:57]} 23...
Qg5 {[%clk 0:00:26.5]} 24. Rd4 {[%clk 0:01:33.3]} 24... Qxg7 {[%clk 0:00:18.9]}
25. Rd8+ {[%clk 0:01:21.8]} 25... Rf8 {[%clk 0:00:18.9]} 26. Rxf8+ {[%clk
0:01:21.2]} 26... Kxf8 {[%clk 0:00:10.1]} 27. Qd6+ {[%clk 0:01:12.1]} 27... Qe7
{[%clk 0:00:09.9]} 28. Qe5 {[%clk 0:01:12.2]} 28... Kf7 {[%clk 0:00:05.1]} 29.
Qh8 {[%clk 0:01:00.5]} 29... Qf6 {[%clk 0:00:04.6]} 30. Qxh7+ {[%clk 0:00:53.5]}
30... Qg7 {[%clk 0:00:04.9]} 31. Qh4 {[%clk 0:00:50.9]} 31... Bd7 {[%clk
0:00:03.6]} 32. Rd1 {[%clk 0:00:49.9]} 32... Ke8 {[%clk 0:00:02.4]} 33. Kf2
{[%clk 0:00:38.8]} 33... Bc6 {[%clk 0:00:02.8]} 34. Rd6 {[%clk 0:00:16.9]} 34...
Bd5 {[%clk 0:00:02.1]} 35. Qa4+ {[%clk 0:00:09.8]} 35... Kf7 {[%clk 0:00:01.9]}
36. Rd7+ {[%clk 0:00:09.9]} 36... Kf6 {[%clk 0:00:02.5]} 37. Rxg7 {[%clk
0:00:10.8]} 37... Kxg7 {[%clk 0:00:03.4]} 38. c4 {[%clk 0:00:11.1]} 38... Bc6
{[%clk 0:00:03.4]} 39. Qb3 {[%clk 0:00:11.3]} 39... Rd8 {[%clk 0:00:02.8]} 40.
Qc3+ {[%clk 0:00:11.9]} 40... Kf7 {[%clk 0:00:02.9]} 41. Qe5 {[%clk 0:00:12.1]}
41... a6 {[%clk 0:00:02.7]} 42. Ke3 {[%clk 0:00:12.1]} 42... Rd7 {[%clk
0:00:03.2]} 43. Kf4 {[%clk 0:00:12.4]} 43... Ke7 {[%clk 0:00:03.1]} 44. Kg5
{[%clk 0:00:12.3]} 44... Kf7 {[%clk 0:00:02.5]} 45. Qf6+ {[%clk 0:00:12.3]}
45... Ke8 {[%clk 0:00:03]} 46. Qxe6+ {[%clk 0:00:12.6]} 46... Re7 {[%clk
0:00:03.2]} 47. Qxf5 {[%clk 0:00:12.6]} 47... Bd7 {[%clk 0:00:03]} 48. Qg6+
{[%clk 0:00:11.7]} 48... Rf7 {[%clk 0:00:02.6]} 49. f4 {[%clk 0:00:11.3]} 49...
Ke7 {[%clk 0:00:02.4]} 50. Qe4+ {[%clk 0:00:11.5]} 50... Kf8 {[%clk 0:00:02.5]}
51. g4 {[%clk 0:00:12]} 51... Rg7+ {[%clk 0:00:02.7]} 52. Kh6 {[%clk 0:00:12.5]}
52... Rxg4 {[%clk 0:00:02.2]} 53. Qe5 {[%clk 0:00:08.1]} 53... Rh4+ {[%clk
0:00:02]} 54. Kg5 {[%clk 0:00:07.3]} 54... Rg4+ {[%clk 0:00:02.4]} 55. Kh5
{[%clk 0:00:08]} 55... Rg7 {[%clk 0:00:02]} 56. f5 {[%clk 0:00:07.4]} 56... Re7
{[%clk 0:00:02]} 57. Qh8+ {[%clk 0:00:07.1]} 57... Kf7 {[%clk 0:00:02.2]} 58.
Kg5 {[%clk 0:00:06.8]} 58... Re2 {[%clk 0:00:02.1]} 59. Qh7+ {[%clk 0:00:06.6]}
59... Kf8 {[%clk 0:00:02]} 60. Kf6 {[%clk 0:00:06.8]} 1-0

[Event "*** Titled Tuesday Blitz"]
[Site "Chess.com"]
[Date "2021.04.06"]
[Round "6"]
[White "Balla_Tamas"]
[Black "mr_gustavo"]
[Result "1-0"]
[WhiteElo "2555"]
[BlackElo "2387"]
[TimeControl "180+1"]
[EndTime "11:09:30 PDT"]
[Termination "Balla_Tamas won on time"]

1. e4 {[%clk 0:03:00.9]} 1... c5 {[%clk 0:02:56]} 2. Nf3 {[%clk 0:03:00.7]} 2...
d6 {[%clk 0:02:56.7]} 3. d4 {[%clk 0:03:00.8]} 3... cxd4 {[%clk 0:02:57.6]} 4.
Nxd4 {[%clk 0:03:01.1]} 4... Nf6 {[%clk 0:02:58.2]} 5. Nc3 {[%clk 0:02:59.7]}
5... Nc6 {[%clk 0:02:58.8]} 6. Bg5 {[%clk 0:02:57.6]} 6... e6 {[%clk 0:02:59.2]}
7. Qd2 {[%clk 0:02:56.2]} 7... a6 {[%clk 0:02:59.5]} 8. f3 {[%clk 0:02:55.2]}
8... Be7 {[%clk 0:02:55.1]} 9. O-O-O {[%clk 0:02:54.7]} 9... Bd7 {[%clk
0:02:54.7]} 10. h4 {[%clk 0:02:53.6]} 10... h6 {[%clk 0:02:53.6]} 11. Be3 {[%clk
0:02:53]} 11... h5 {[%clk 0:02:54.2]} 12. Be2 {[%clk 0:02:46.9]} 12... Ne5
{[%clk 0:02:52.7]} 13. f4 {[%clk 0:02:35]} 13... Neg4 {[%clk 0:02:52.2]} 14. Bg1
{[%clk 0:02:34.6]} 14... Qc7 {[%clk 0:02:42.3]} 15. Bf3 {[%clk 0:02:29.7]} 15...
Rc8 {[%clk 0:02:40.2]} 16. g3 {[%clk 0:02:26.6]} 16... b5 {[%clk 0:02:39.3]} 17.
Kb1 {[%clk 0:02:25.5]} 17... O-O {[%clk 0:02:36.2]} 18. f5 {[%clk 0:02:00.6]}
18... e5 {[%clk 0:02:35.8]} 19. Nb3 {[%clk 0:02:00.6]} 19... Bc6 {[%clk
0:02:34]} 20. Nd5 {[%clk 0:02:00.4]} 20... Bxd5 {[%clk 0:02:32.7]} 21. exd5
{[%clk 0:02:00.6]} 21... Bd8 {[%clk 0:02:01.8]} 22. Qd3 {[%clk 0:01:51.2]} 22...
Qc4 {[%clk 0:02:00.1]} 23. Nd2 {[%clk 0:01:32.3]} 23... Qxd3 {[%clk 0:01:57.2]}
24. cxd3 {[%clk 0:01:33]} 24... Be7 {[%clk 0:01:39.7]} 25. Ne4 {[%clk
0:01:28.5]} 25... Nxe4 {[%clk 0:01:09.2]} 26. dxe4 {[%clk 0:01:26.1]} 26... Nf6
{[%clk 0:01:09.7]} 27. Be3 {[%clk 0:01:23.1]} 27... g6 {[%clk 0:01:06.9]} 28.
Bg5 {[%clk 0:01:13.7]} 28... Rfe8 {[%clk 0:01:00.4]} 29. Rhf1 {[%clk 0:01:04.8]}
29... Nd7 {[%clk 0:00:53.1]} 30. Be3 {[%clk 0:01:00.4]} 30... Kg7 {[%clk
0:00:42]} 31. g4 {[%clk 0:00:59.7]} 31... hxg4 {[%clk 0:00:38.7]} 32. Bxg4
{[%clk 0:00:59.9]} 32... Nf6 {[%clk 0:00:39.3]} 33. Bf3 {[%clk 0:00:59.6]} 33...
Rc4 {[%clk 0:00:39.8]} 34. b3 {[%clk 0:00:57.8]} 34... Rc3 {[%clk 0:00:32]} 35.
Bd2 {[%clk 0:00:57.4]} 35... Rc7 {[%clk 0:00:27.1]} 36. fxg6 {[%clk 0:00:56.5]}
36... fxg6 {[%clk 0:00:28]} 37. Rg1 {[%clk 0:00:55.6]} 37... Rh8 {[%clk
0:00:22.4]} 38. Bg5 {[%clk 0:00:52.5]} 38... Rc3 {[%clk 0:00:20.5]} 39. Rdf1
{[%clk 0:00:49.9]} 39... Ng8 {[%clk 0:00:14.3]} 40. Bd2 {[%clk 0:00:46.2]} 40...
Rxf3 {[%clk 0:00:08.1]} 41. Rxf3 {[%clk 0:00:45.6]} 41... Rxh4 {[%clk
0:00:08.8]} 42. Rfg3 {[%clk 0:00:42.8]} 42... Nf6 {[%clk 0:00:04]} 43. Rxg6+
{[%clk 0:00:42.1]} 43... Kf7 {[%clk 0:00:04.9]} 44. Rg7+ {[%clk 0:00:41.4]}
44... Ke8 {[%clk 0:00:05.6]} 45. Bg5 {[%clk 0:00:39.5]} 45... Rxe4 {[%clk
0:00:06.1]} 46. Bxf6 {[%clk 0:00:39.1]} 46... Bxf6 {[%clk 0:00:05.8]} 47. Ra7
{[%clk 0:00:39.2]} 47... Be7 {[%clk 0:00:02.9]} 48. Rg8+ {[%clk 0:00:35.4]}
48... Kf7 {[%clk 0:00:03.3]} 49. Rc8 {[%clk 0:00:35.9]} 49... Kf6 {[%clk
0:00:02.2]} 50. Rcc7 {[%clk 0:00:34.3]} 50... Bd8 {[%clk 0:00:02.9]} 51. Rf7+
{[%clk 0:00:33.4]} 51... Kg6 {[%clk 0:00:01.6]} 52. Rfd7 {[%clk 0:00:32.7]}
52... Ba5 {[%clk 0:00:01.1]} 53. Rxd6+ {[%clk 0:00:32.3]} 53... Kh5 {[%clk
0:00:01.7]} 54. Raxa6 {[%clk 0:00:31.9]} 54... Bc3 {[%clk 0:00:01.1]} 55. Kc2
{[%clk 0:00:30.8]} 55... b4 {[%clk 0:00:01.2]} 56. Kd3 {[%clk 0:00:31]} 56...
Rd4+ {[%clk 0:00:01.4]} 57. Ke3 {[%clk 0:00:30.7]} 57... Rd2 {[%clk 0:00:02.1]}
58. Rh6+ {[%clk 0:00:29.6]} 58... Kg4 {[%clk 0:00:02]} 59. Rag6+ {[%clk
0:00:30]} 59... Kf5 {[%clk 0:00:02.7]} 60. Rf6+ {[%clk 0:00:30.1]} 60... Kg5
{[%clk 0:00:03]} 61. Rhg6+ {[%clk 0:00:30.8]} 61... Kh5 {[%clk 0:00:03.3]} 62.
Rg8 {[%clk 0:00:30.1]} 62... Rb2 {[%clk 0:00:03.8]} 63. Rf7 {[%clk 0:00:29.8]}
63... Bd4+ {[%clk 0:00:04.3]} 64. Kd3 {[%clk 0:00:29.4]} 64... Kh6 {[%clk
0:00:04.2]} 65. Rf1 {[%clk 0:00:28.2]} 65... Kh7 {[%clk 0:00:04.7]} 66. Rg4
{[%clk 0:00:27.6]} 66... Rh2 {[%clk 0:00:02.6]} 67. d6 {[%clk 0:00:27.4]} 67...
Rh3+ {[%clk 0:00:02.5]} 68. Kc4 {[%clk 0:00:26.8]} 68... Rh6 {[%clk 0:00:02]}
69. d7 {[%clk 0:00:26.4]} 69... Bb6 {[%clk 0:00:01.3]} 70. Re4 {[%clk
0:00:25.4]} 1-0

[Event "*** Titled Tuesday Blitz"]
[Site "Chess.com"]
[Date "2021.04.06"]
[Round "6"]
[White "Snegokhod"]
[Black "zmeeed67"]
[Result "0-1"]
[WhiteElo "2561"]
[BlackElo "2435"]
[TimeControl "180+1"]
[EndTime "11:09:33 PDT"]
[Termination "zmeeed67 won on time"]

1. d4 {[%clk 0:03:00.9]} 1... d5 {[%clk 0:03:00.1]} 2. c4 {[%clk 0:03:00.4]}
2... e6 {[%clk 0:03:00.6]} 3. Nc3 {[%clk 0:02:59.9]} 3... c6 {[%clk 0:03:01.2]}
4. e4 {[%clk 0:02:59.6]} 4... dxe4 {[%clk 0:03:02.1]} 5. Nxe4 {[%clk 0:03:00.2]}
5... Bb4+ {[%clk 0:03:02.7]} 6. Bd2 {[%clk 0:03:00.3]} 6... Qxd4 {[%clk
0:03:03]} 7. Bxb4 {[%clk 0:03:00.5]} 7... Qxe4+ {[%clk 0:03:03.7]} 8. Be2 {[%clk
0:03:01.1]} 8... Ne7 {[%clk 0:03:04.3]} 9. Nf3 {[%clk 0:02:59.1]} 9... Nd5
{[%clk 0:03:04.4]} 10. Bd6 {[%clk 0:02:49.5]} 10... Nf4 {[%clk 0:03:03.2]} 11.
Bxf4 {[%clk 0:02:47.1]} 11... Qxf4 {[%clk 0:03:04.1]} 12. O-O {[%clk 0:02:45.9]}
12... O-O {[%clk 0:03:01.3]} 13. g3 {[%clk 0:02:45.2]} 13... Qc7 {[%clk
0:02:59.9]} 14. Qd4 {[%clk 0:02:40.1]} 14... c5 {[%clk 0:02:42]} 15. Qe4 {[%clk
0:02:30.4]} 15... Nc6 {[%clk 0:02:19.1]} 16. Ng5 {[%clk 0:02:28.7]} 16... f5
{[%clk 0:02:02.1]} 17. Qh4 {[%clk 0:02:28.2]} 17... h6 {[%clk 0:02:00.7]} 18.
Nf3 {[%clk 0:02:28.3]} 18... e5 {[%clk 0:01:59.1]} 19. Rfe1 {[%clk 0:02:11.3]}
19... Be6 {[%clk 0:01:43.6]} 20. Bf1 {[%clk 0:02:09.6]} 20... e4 {[%clk
0:01:28.5]} 21. Nd2 {[%clk 0:01:49.7]} 21... Rad8 {[%clk 0:01:27]} 22. Nb3
{[%clk 0:01:49.8]} 22... Nd4 {[%clk 0:01:24.4]} 23. Nxd4 {[%clk 0:01:45.3]}
23... cxd4 {[%clk 0:01:25.3]} 24. b3 {[%clk 0:01:45]} 24... Qe5 {[%clk
0:00:57.7]} 25. Rad1 {[%clk 0:01:34.9]} 25... Bd7 {[%clk 0:00:33.4]} 26. Qh5
{[%clk 0:01:13.8]} 26... Bc6 {[%clk 0:00:30.1]} 27. Bg2 {[%clk 0:01:12.2]} 27...
Qf6 {[%clk 0:00:25.7]} 28. b4 {[%clk 0:01:08.3]} 28... b6 {[%clk 0:00:25.8]} 29.
Qe2 {[%clk 0:00:48.1]} 29... Kh8 {[%clk 0:00:24.7]} 30. Rc1 {[%clk 0:00:43.6]}
30... Rfe8 {[%clk 0:00:17.7]} 31. b5 {[%clk 0:00:43.4]} 31... Ba8 {[%clk
0:00:17.3]} 32. c5 {[%clk 0:00:43.9]} 32... bxc5 {[%clk 0:00:09.1]} 33. Rxc5
{[%clk 0:00:44.8]} 33... f4 {[%clk 0:00:06.5]} 34. Qg4 {[%clk 0:00:34]} 34... f3
{[%clk 0:00:05.4]} 35. Rf5 {[%clk 0:00:27.1]} 35... Qd6 {[%clk 0:00:02.5]} 36.
Rf7 {[%clk 0:00:21.3]} 36... Qe5 {[%clk 0:00:02.1]} 37. Bxf3 {[%clk 0:00:20.5]}
37... Rg8 {[%clk 0:00:01.9]} 38. Bxe4 {[%clk 0:00:19.5]} 38... Bxe4 {[%clk
0:00:02.8]} 39. Qxe4 {[%clk 0:00:18.6]} 39... Qxb5 {[%clk 0:00:03.7]} 40. Rd1
{[%clk 0:00:14.5]} 40... d3 {[%clk 0:00:03.8]} 41. Qe3 {[%clk 0:00:12.8]} 41...
Rge8 {[%clk 0:00:03.7]} 42. Re7 {[%clk 0:00:10.6]} 42... Rxe7 {[%clk 0:00:02]}
43. Qxe7 {[%clk 0:00:11.5]} 43... Qd5 {[%clk 0:00:02.5]} 44. Rd2 {[%clk
0:00:10.3]} 44... a5 {[%clk 0:00:02.3]} 45. Qe3 {[%clk 0:00:09.1]} 45... Qc4
{[%clk 0:00:01.3]} 46. h4 {[%clk 0:00:07.5]} 46... Qc1+ {[%clk 0:00:01.9]} 47.
Kg2 {[%clk 0:00:07.6]} 47... Qc4 {[%clk 0:00:02.5]} 48. f3 {[%clk 0:00:06.6]}
48... a4 {[%clk 0:00:03]} 49. g4 {[%clk 0:00:06.4]} 49... a3 {[%clk 0:00:03.3]}
50. Kg3 {[%clk 0:00:07]} 50... Qd5 {[%clk 0:00:03.7]} 51. h5 {[%clk 0:00:06.3]}
51... Qd6+ {[%clk 0:00:04.2]} 52. Qf4 {[%clk 0:00:06.2]} 52... Qe6 {[%clk
0:00:02.9]} 53. g5 {[%clk 0:00:05.6]} 53... hxg5 {[%clk 0:00:01.9]} 54. Qxg5
{[%clk 0:00:06.5]} 54... Rf8 {[%clk 0:00:02.2]} 55. Qg4 {[%clk 0:00:06.6]} 55...
Qe1+ {[%clk 0:00:02.4]} 56. Kh3 {[%clk 0:00:06]} 56... Qxd2 {[%clk 0:00:02.4]}
57. h6 {[%clk 0:00:06.1]} 57... Qxh6+ {[%clk 0:00:02.8]} 58. Kg2 {[%clk
0:00:06.3]} 58... d2 {[%clk 0:00:03.5]} 59. Qd4 {[%clk 0:00:06.2]} 59... Qg6+
{[%clk 0:00:03.7]} 60. Kf2 {[%clk 0:00:06]} 60... Qf6 {[%clk 0:00:03.8]} 61.
Qxd2 {[%clk 0:00:05.7]} 61... Qxf3+ {[%clk 0:00:04.5]} 62. Kg1 {[%clk
0:00:06.3]} 62... Qf1+ {[%clk 0:00:05]} 63. Kh2 {[%clk 0:00:06.8]} 63... Rf2+
{[%clk 0:00:05.9]} 0-1

[Event "*** Titled Tuesday Blitz"]
[Site "Chess.com"]
[Date "2021.04.06"]
[Round "6"]
[White "VitaRasik"]
[Black "Andreikka"]
[Result "1/2-1/2"]
[WhiteElo "2607"]
[BlackElo "2859"]
[TimeControl "180+1"]
[EndTime "11:09:34 PDT"]
[Termination "Game drawn by repetition"]

1. e4 {[%clk 0:03:00.9]} 1... c6 {[%clk 0:02:54]} 2. c4 {[%clk 0:02:58.6]} 2...
d5 {[%clk 0:02:51.9]} 3. cxd5 {[%clk 0:02:58.5]} 3... cxd5 {[%clk 0:02:51.7]} 4.
exd5 {[%clk 0:02:58.8]} 4... Nf6 {[%clk 0:02:52.3]} 5. Bb5+ {[%clk 0:02:58.6]}
5... Nbd7 {[%clk 0:02:43.3]} 6. Nc3 {[%clk 0:02:58.4]} 6... g6 {[%clk
0:02:41.4]} 7. d4 {[%clk 0:02:57.6]} 7... Bg7 {[%clk 0:02:41.4]} 8. d6 {[%clk
0:02:58]} 8... exd6 {[%clk 0:02:39]} 9. Qe2+ {[%clk 0:02:58.1]} 9... Qe7 {[%clk
0:02:34.3]} 10. Bf4 {[%clk 0:02:58.6]} 10... Qxe2+ {[%clk 0:02:22.5]} 11. Bxe2
{[%clk 0:02:58.2]} 11... Ke7 {[%clk 0:02:12]} 12. Bf3 {[%clk 0:02:57.8]} 12...
Nb6 {[%clk 0:02:06.2]} 13. Nge2 {[%clk 0:02:57.8]} 13... Bg4 {[%clk 0:01:56.2]}
14. Bxb7 {[%clk 0:02:51.7]} 14... Rab8 {[%clk 0:01:55.3]} 15. Bc6 {[%clk
0:02:51.4]} 15... Rhc8 {[%clk 0:01:49.8]} 16. d5 {[%clk 0:02:46.3]} 16... Nc4
{[%clk 0:01:49.5]} 17. f3 {[%clk 0:02:38.6]} 17... Bd7 {[%clk 0:01:43.9]} 18. b3
{[%clk 0:02:29.1]} 18... Nb6 {[%clk 0:01:37.1]} 19. Nb5 {[%clk 0:02:16.5]} 19...
Ne8 {[%clk 0:01:25.5]} 20. Rc1 {[%clk 0:02:14]} 20... Nxd5 {[%clk 0:01:24]} 21.
Nxa7 {[%clk 0:01:58.4]} 21... Rc7 {[%clk 0:00:57.6]} 22. Bxd5 {[%clk 0:01:56.5]}
22... Rxa7 {[%clk 0:00:57.1]} 23. Rc2 {[%clk 0:01:32.6]} 23... Bf5 {[%clk
0:00:50]} 24. Rd2 {[%clk 0:01:32.6]} 24... Nc7 {[%clk 0:00:45.7]} 25. Be4 {[%clk
0:01:17.9]} 25... Bxe4 {[%clk 0:00:22]} 26. Bxd6+ {[%clk 0:01:17.8]} 26... Ke8
{[%clk 0:00:22.4]} 27. fxe4 {[%clk 0:01:17.8]} 27... Rbb7 {[%clk 0:00:16.2]} 28.
Kf2 {[%clk 0:01:09.3]} 28... Ne6 {[%clk 0:00:16.5]} 29. Rhd1 {[%clk 0:00:48]}
29... Ra6 {[%clk 0:00:13.7]} 30. e5 {[%clk 0:00:38.7]} 30... Ra8 {[%clk
0:00:12.9]} 31. g3 {[%clk 0:00:36.5]} 31... Bh6 {[%clk 0:00:12.7]} 32. Rc2
{[%clk 0:00:35.2]} 32... Bf8 {[%clk 0:00:12.9]} 33. Bxf8 {[%clk 0:00:34.1]}
33... Kxf8 {[%clk 0:00:13.8]} 34. Nf4 {[%clk 0:00:34]} 34... Ng5 {[%clk
0:00:10.8]} 35. h4 {[%clk 0:00:29.9]} 35... Ne6 {[%clk 0:00:03.6]} 36. Nxe6+
{[%clk 0:00:29.2]} 36... fxe6 {[%clk 0:00:04.5]} 37. Rd6 {[%clk 0:00:29]} 37...
Kf7 {[%clk 0:00:03.7]} 38. Ke3 {[%clk 0:00:28.3]} 38... Ra5 {[%clk 0:00:04.1]}
39. Ke4 {[%clk 0:00:26.2]} 39... h6 {[%clk 0:00:04.3]} 40. g4 {[%clk 0:00:25.5]}
40... g5 {[%clk 0:00:03.8]} 41. h5 {[%clk 0:00:24]} 41... Rb4+ {[%clk
0:00:04.3]} 42. Rd4 {[%clk 0:00:24.1]} 42... Rb7 {[%clk 0:00:03.6]} 43. Rcd2
{[%clk 0:00:23.3]} 43... Ke7 {[%clk 0:00:03]} 44. a4 {[%clk 0:00:18]} 44... Raa7
{[%clk 0:00:03.5]} 45. R2d3 {[%clk 0:00:18]} 45... Rc7 {[%clk 0:00:04]} 46. Rc4
{[%clk 0:00:17.8]} 46... Rxc4+ {[%clk 0:00:03.7]} 47. bxc4 {[%clk 0:00:17.6]}
47... Rxa4 {[%clk 0:00:04.6]} 48. Kd4 {[%clk 0:00:17.6]} 48... Ra1 {[%clk
0:00:05.2]} 49. Rb3 {[%clk 0:00:16.9]} 49... Kd7 {[%clk 0:00:02.9]} 50. Rb7+
{[%clk 0:00:15.1]} 50... Kc6 {[%clk 0:00:03.4]} 51. Rh7 {[%clk 0:00:15.2]} 51...
Rd1+ {[%clk 0:00:03.7]} 52. Ke4 {[%clk 0:00:14.9]} 52... Re1+ {[%clk 0:00:03.2]}
53. Kd4 {[%clk 0:00:15.2]} 53... Rg1 {[%clk 0:00:02.5]} 54. Rxh6 {[%clk
0:00:14.7]} 54... Rxg4+ {[%clk 0:00:03.4]} 55. Kc3 {[%clk 0:00:14.6]} 55... Kc5
{[%clk 0:00:04.3]} 56. Rxe6 {[%clk 0:00:14.4]} 56... Rg3+ {[%clk 0:00:04.9]} 57.
Kd2 {[%clk 0:00:13.7]} 57... Kd4 {[%clk 0:00:04.7]} 58. h6 {[%clk 0:00:11.9]}
58... Rg2+ {[%clk 0:00:05]} 59. Kd1 {[%clk 0:00:11.2]} 59... Kxc4 {[%clk
0:00:03.6]} 60. h7 {[%clk 0:00:10.5]} 60... Rh2 {[%clk 0:00:04.2]} 61. Re7
{[%clk 0:00:10.2]} 61... g4 {[%clk 0:00:03.9]} 62. Ke1 {[%clk 0:00:10.3]} 62...
g3 {[%clk 0:00:03.5]} 63. Kf1 {[%clk 0:00:10.5]} 63... Kd5 {[%clk 0:00:04.1]}
64. Kg1 {[%clk 0:00:10.6]} 64... Kc6 {[%clk 0:00:04.5]} 65. Rg7 {[%clk
0:00:09.4]} 65... Kd5 {[%clk 0:00:04.8]} 66. Re7 {[%clk 0:00:08.3]} 66... Kc6
{[%clk 0:00:05.4]} 67. Rg7 {[%clk 0:00:07]} 67... Kd5 {[%clk 0:00:05.7]} 68. Re7
{[%clk 0:00:07.1]} 1/2-1/2